{"text_format":"1","workbook":"xlsx","n_sheets":1,"sheets":["Лист1"],"not_rendered":{"charts":0,"images":0,"macros":1,"external_links":0,"defined_names":1,"comments":0,"pivot_tables":0},"unopened":[],"bounds":{"document_bytes":16777216,"sheet_cells":100000,"rows_first":2000,"rows_last":500,"rows_between":2000,"halvings":0,"cell_chars":16384,"cell_head_chars":4096},"cells_cut":0,"cells_raw":0,"read":"whole","date_system":"1900"}

{"sheet":"Лист1","index":0,"n_rows":203,"n_cols":6,"rows_kept":203,"cut":false,"hidden":false,"merged":[]}
["№","ФИО","игры","победы","процент побед"]
[1,"Граник Ариэль (г. Дзержинск)",20,20,{"$f":"IF(C2>9,(D2/C2)+0.0001%,0)","v":1.0000009999999999},"*"]
[1,"Бахарев Темур (ТЦ РИАТ, г. Иваново)",18,18,1.0000009999999999]
[1,"Копылов Федор (г. Москва)",12,12,1.0000009999999999]
[4,"Логинова Полина (ТК \"Жемчужина\", г. Москва)",63,59,0.93650893650793654]
[5,"Лабцов Артем (г. Ковров)",16,14,0.87500100000000003]
[6,"Сурганов Лев (г. Москва)",46,39,0.84782708695652176]
[7,"Пронина Милана (г.Нижний Новгород)",30,25,0.8333343333333334]
[8,"Савицкий Арсений (Академия Александра Островского в Химках)",18,15,0.8333343333333334]
[9,"Назаревская София (г. Москва)",11,9,0.81818281818181826]
[10,"Симонова Варвара (Академия Александра Островского в Туле)",41,33,0.80487904878048788]
[11,"Михайлова Ева (г. Сочи)",10,8,0.80000100000000007]
[12,"Сергиенко Виктория (Академия Александра Островского в Химках)",10,8,0.80000100000000007]
[13,"Мешкова Елизавета (г. Чебоксары)",13,10,0.7692317692307693]
[14,"Бамборин Александр (Академия Александра Островского в Химках)",17,13,0.76470688235294115]
[15,"Рыбин Платон (Академия Александра Островского в Туле)",34,26,0.76470688235294115]
[16,"Ананьев Федор (Академия Александра Островского в Химках)",11,8,0.72727372727272732]
[17,"Шаврикова Ксения (Академия Александра Островского в Химках)",11,8,0.72727372727272732]
[18,"Кузнецова Мария (г. Бор)",14,10,0.71428671428571433]
[19,"Белоева Арина (г. Дзержинск)",13,9,0.69230869230769232]
[20,"Сухоиваненко Артем (\"Спартак\", г. Москва)",34,23,0.67647158823529419]
[21,"Ершов Николай (ТЦ РИАТ, г. Иваново)",12,8,0.66666766666666666]
[22,"Павлов Владислав (ТК \"Жемчужина\", г. Москва)",15,10,0.66666766666666666]
[23,"Смирнов Давид (г. Рыбинск)",27,18,0.66666766666666666]
[24,"Васильев Родион (Академия Александра Островского в Туле)",14,9,0.64285814285714293]
[25,"Праскина Ульяна (г.Нижний Новгород)",14,9,0.64285814285714293]
[26,"Горбунов Максим  (ТК \"Жемчужина\", г. Москва)",11,7,0.63636463636363638]
[27,"Купчик Евгения (г. Москва)",13,8,0.61538561538461545]
[28,"Иванкова Виктория (г.Нижний Новгород)",18,11,0.61111211111111119]
[29,"Докукин Даниил (Академия Александра Островского в Химках)",20,12,0.60000100000000001]
[30,"Комаров Степан (г. Ярославль)",10,6,0.60000100000000001]
[31,"Пугачева Дарья (г. Ярославль)",10,6,0.60000100000000001]
[32,"Семененков Леон (ТЦ РИАТ г. Иваново)",17,10,0.58823629411764711]
[33,"Торгашин Кирилл (Академия Александра Островского в Химках)",21,12,0.57142957142857143]
[34,"Черняева Олеся (Академия тенниса имени Н.Н. Озерова, Рязань)",18,10,0.55555655555555561]
[35,"Минченкова Кристина (ТЦ \"Долгопрудный)",13,7,0.53846253846153846]
[36,"Сергина Александра (г.Нижний Новгород)",21,11,0.52381052380952386]
[37,"Егоров Тимофей (г.Нижний Новгород)",14,7,0.50000100000000003]
[38,"Журавлева Мелания (г. Москва)",18,9,0.50000100000000003]
[39,"Ряхимов Алексей (\"Олимпиец\", г. Москва)",22,11,0.50000100000000003]
[40,"Суховерхов Глеб (ТК \"Жемчужина\", г. Москва)",14,7,0.50000100000000003]
[41,"Повалишникова Елизавета (г. Москва)",21,10,0.47619147619047614]
[42,"Почевалов Тимофей (г. Нижний Новгород)",15,7,0.46666766666666665]
[43,"Ломаев Данил (г.Нижний Новгород)",11,5,0.4545464545454545]
[44,"Моисеев Иван (г.Нижний Новгород)",11,5,0.4545464545454545]
[45,"Кранкова Ульяна (г. Москва)",20,9,0.45000099999999998]
[46,"Сидельникова Вероника (ТК \"Жемчужина\", г. Москва)",14,6,0.42857242857142852]
[47,"Недря Тимофей (г. Долгопрудный)",15,6,0.400001]
[48,"Оконнор Райн (г. Москва)",10,4,0.400001]
[49,"Чайка Виктория (ТК \"Легион\", г. Москва)",10,4,0.400001]
[50,"Малышев Егор (г.Нижний Новгород)",13,5,0.38461638461538461]
[51,"Хегай Елизавета (Школа Тенниса Сергея Купцова, г. Москва)",13,5,0.38461638461538461]
[52,"Губаева Майя (ТК \"Жемчужина\", г. Москва)",11,4,0.36363736363636362]
[53,"Ивичук Мирон (г.Нижний Новгород)",14,5,0.35714385714285712]
[54,"Адамский Кирилл (\"Спартак\", г. Москва)",12,4,0.33333433333333329]
[55,"Салехова Каролина (г. Москва)",11,3,0.27272827272727268]
[56,"Ильина Елизавета (г. Москва)",10,2,0.20000100000000001]
[57,"Кучеров Даниил (г. Москва)",12,2,0.16666766666666666]
[58,"Устинова Александра (г. Зеленоград)",19,2,0.10526415789473684]
[59,"Коробенкова Алиса (г. Москва)",10,1,0.10000100000000001]
[60,"Диева Яна (г.Нижний Новгород)",13,1,7.6924076923076928E-2]
[61,"Турлаева Арина (г.Нижний Новгород)",14,1,7.1429571428571426E-2]
[62," Ахрамейко Лев (ТК \"Жемчужина\", г. Москва)",5,3,0]
[63,"Аветисян Анна (ТК \"Жемчужина\", г. Москва)",6,4,0]
[64,"Адамова Ева (ЦСКА, г. Москва)",2,0,0]
[65,"Андреева Александра",3,1,{"$f":"IF(C66>9,(D66/C66)+0.0001%,0)","v":0}]
[66,"Андреева София",2,0,0]
[67,"Ахмедов Петр (ТК \"Жемчужина\", г. Москва)",6,2,0]
[68,"Ахметшина Оливия (г. Ярославль)",3,0,0]
[69,"Бабурина Вероника (\"Спартак\", г. Москва)",5,4,0]
[70,"Базаева Ксения (г. Нижний Новгород)",8,1,0]
[71,"Балакирева Вероника",5,1,0]
[72,"Батюк Иванна (ТК \"Жемчужина\", г. Москва)",5,2,0]
[73,"Безаева Ксения (г.Нижний Новгород)",3,0,0]
[74,"Безусенко Елизавета (ТК \"Жемчужина\", г. Москва)",4,0,0]
[75,"Беликова Алиса (г. Санкт-Петербург)",3,1,0]
[76,"Березин Дмитрий (г. Чебоксары)",8,4,0]
[77,"Бессонов Андрей (СК \"Подмосковье\", г. Люберцы)",5,3,0]
[78,"Бисеров Роман (\"Спартак\", г. Москва)",2,0,0]
[79,"Бочков Антон  (\"Спартак\", г. Москва)",3,1,0]
[80,"Буйницкая Анастасия (ЦСКА, г. Москва)",3,1,0]
[81,"Бурдель Агния (Академия Александра Островского в Химках)",6,3,0]
[82,"Бусловская Алиса (г. Обнинск)",3,1,0]
[83,"Вагапова Адриана (г.Нижний Новгород)",3,1,0]
[84,"Васильев Данила (г. Рыбинск)",4,3,0]
[85,"Ветчинникова Варвара (ТК \"Жемчужина\", г. Москва)",4,2,0]
[86,"Видутова Екатерина (Школа тенниса \"Смеш\", г. Москва)",8,5,0]
[87,"Вишневкина Анна (Академия Александра Островского в Химках)",2,0,0]
[88,"Владимирова Филипп (г.Нижний Новгород)",6,1,0]
[89,"Выпряжкин Александр (Академия Александра Островского в Химках)",4,0,0]
[90,"Галаганова Кира (Академия Александра Островского в Химках)",4,0,0]
[91,"Глуздаков Михаил (ТЦ РИАТ, г. Иваново)",3,1,0]
[92,"Говорина Мария (г. Москва)",2,0,0]
[93,"Горлова Стефания (г. Ковров)",4,2,0]
[94,"Горюнов Лев (\"Спартак\", г. Москва)",2,0,0]
[95,"Гринько Илья (Академия Александра Островского в Химках)",2,0,0]
[96,"Губин Макар (г. Долгопрудный)",4,2,0]
[97,"Демир Маер (г. Москва)",3,1,0]
[98,"Дервицкий Кирилл (г. Москва)",2,0,0]
[99,"Децина Таисия (г. Обнинск)",2,0,0]
[100,"Джуплин Александр (ТК \"Жемчужина\", г. Москва)",4,1,0]
[101,"Джуплин Андрей (ТК Vitasport, г. Москва)",2,0,0]
[102,"Диеева Яна (г.Нижний Новгород)",4,1,0]
[103,"Другалева Вероника (г. Зеленоград)",7,3,0]
[104,"Дуванский Михаил (г. Москва)",3,0,0]
[105,"Ермоленко Константин (ТК \"Жемчужина\", г. Москва)",5,2,0]
[106,"Жаркий Максим (ТК \"Жемчужина\", г. Москва)",5,2,0]
[107,"Зайченко Злата (школа тенниса J-PRO, г. Москва)",3,0,0]
[108,"Землянкий Иван (Академия Александра Островского в Химках)",5,1,0]
[109,"Зубачев Марк",2,0,0]
[110,"Иванов Егор",3,2,0]
[111,"Иванов Михаил (\"Спартак\", г. Москва)",5,1,0]
[112,"Казумофф Виктория (г. Москва)",4,0,0]
[113,"Калмыкова Виктория (ТК \"Жемчужина\", г. Москва)",5,4,0]
[114,"Каминер Анастасия (\"Спартак\", г. Москва)",2,0,0]
[115,"Карпова Арина (СК \"Подмосковье\", г. Люберцы)",2,0,0]
[116,"Карсанов Аксо (академия тенниса \"Асгард\", г. Владикавказ)",6,2,0]
[117,"Ковальчук Елисей (г. Москва)",2,0,0]
[118,"Козина Валерия (г. Нижний Новгород)",9,5,0]
[119,"Конуров Даниил (г. Москва)",3,1,0]
[120,"Кораблев Артем (г. Ярославль)",8,3,0]
[121,"Корнев Тимофей (г. Москва)",3,2,0]
[122,"Король Павел (г. Москва)",2,0,0]
[123,"Коротков Даниил (г.Нижний Новгород)",6,1,0]
[124,"Космачев Федор (г.Нижний Новгород)",3,0,0]
[125,"Красовская Вероника (г. Екатеринбург)",2,0,0]
[126,"Крупнов Андрей (г. Нижний Новгород)",7,2,0]
[127,"Кудинов Андрей (г. Москва)",2,0,0]
[128,"Кудря Андрей (школа тенниса Сергея Купцова, г. Москва)",5,1,0]
[129,"Кузнецова Елизавета (г.Нижний Новгород)",4,2,{"$f":"IF(C130>9,(D130/C130)+0.0001%,0)","v":0}]
[130,"Кукушкина Алена (г. Ярославль)",9,2,0]
[131,"Кулишкова Добромила (ТК \"Жемчужина\", г. Москва)",4,0,0]
[132,"Ладо Глеб (Академия Александра Островского в Химках)",4,0,0]
[133,"Лазарев Андрей (г. Москва)",2,0,0]
[134,"Ларин Арсений (г. Калуга)",3,1,0]
[135,"Лаушкин Владимир (ТК \"Жемчужина\", г. Москва)",4,1,0]
[136,"Леонтьева Полина (г.Нижний Новгород)",6,0,0]
[137,"Ли Михаил (ТК \"Жемчужина\", г. Москва)",4,4,0]
[138,"Логач Николай (ТК \"Жемчужина\", г. Москва)",4,2,0]
[139,"Ма Чыонг (СК \"Подмосковье\", г. Люберцы)",2,0,0]
[140,"Мазуренко Андрей (г. Москва)",4,1,0]
[141,"Макаров Иван (г. Мытищи)",3,1,0]
[142,"Матвеев Степан (г.Нижний Новгород)",4,0,0]
[143,"Медведев Ярослав (ЦСКА, г. Москва)",6,0,0]
[144,"Миленин Максим (г. Москва)",6,0,0]
[145,"Молчанов Георгий (Академия Александра Островского в Химках)",4,2,0]
[146,"Морев Артем (г. Рыбинск)",6,4,0]
[147,"Морозова Алиса (г.Нижний Новгород)",4,1,0]
[148,"Московская София (ТК \"Жемчужина\", г. Москва)",5,2,0]
[149,"Мулин Матвей (г. Ярославль)",4,0,0]
[150,"Мышкин Егор (г. Москва)",2,0,0]
[151,"Нелюбова Ксения (Академия Александра Островского в Химках)",9,3,0]
[152,"Никитин Михаил (ТК \"Новогорск-2, Московская область)",3,1,0]
[153,"Никиткина Вера (г. Дзержинск)",5,3,0]
[154,"Новикова Татьяна (ТК \"Жемчужина\", г. Москва)",4,0,0]
[155,"Новожилова Виктория (ТК \"Орион\", г. Раменское)",2,0,0]
[156,"Оберемко Анастасия",3,1,0]
[157,"Овсянников Степан (г.Нижний Новгород)",4,2,0]
[158,"Панченко Валерия (г. Москва)",6,2,0]
[159,"Петушкова Анфиса (\"Спартак\", г. Москва)",5,2,0]
[160,"Пешкова Анастасия (Академия Александра Островского в Химках)",6,2,0]
[161,"Повод Арсений (г. Химки)",5,1,0]
[162,"Пономарев Алексей (\"Спартак\", г. Москва)",5,0,0]
[163,"Прищепа Кирилл (г.Нижний Новгород)",3,0,0]
[164,"Рачковская Юлия (ТЦ \"Хотьково\", Московская область)",3,1,0]
[165,"Репина Алиса (ТК \"Жемчужина\", г. Москва)",8,1,0]
[166,"Романюк Марианна (г.Нижний Новгород)",7,0,0]
[167,"Рудаковский Михаил (ТЦ РИАТ, г. Иваново)",9,2,0]
[168,"Рысев Иван (г. Москва)",3,1,0]
[169,"Савина Валерия (ТК \"Жемчужина\", г. Москва)",5,1,0]
[170,"Самохина Злата (ТК \"Лосинка\", г. Москва)",2,0,0]
[171,"Самсонов Егор (г. Москва)",7,0,0]
[172,"Скворцов Олег (г. Рыбинск)",3,1,0]
[173,"Смирнов Степан (ТК \"Жемчужина\", г. Москва)",4,0,0]
[174,"Сысоева Елизавета (г. Казань)",2,1,0]
[175,"Тадзелашвили Георгий (г. Москва)",8,5,0]
[176,"Таныгина Мария (г. Москва)",6,5,0]
[177,"Тонких Валерия (ЦСКА, г. Москва)",5,0,0]
[178,"Тонких Мила (ЦСКА, г. Москва)",6,1,0]
[179,"Тоньшева Екатерина (г. Ярославль)",8,3,0]
[180,"Торгонь Светлана (г. Рыбинск)",4,2,0]
[181,"Тюбеева Малика (ТК \"Жемчужина\", г. Москва)",5,2,0]
[182,"Ульянова Милана (ТЦ РИАТ г. Иваново)",6,3,0]
[183,"Фадеева Мария (г. Москва)",4,0,0]
[184,"Фениксова Александра (г. Омск)",9,2,0]
[185,"Халтурина Александра (Школа тенниса J-Pro, г. Санкт-Петербург)",6,4,0]
[186,"Химченко Полина (г. Обнинск)",2,0,0]
[187,"Чистяков Артем (ТЦ РИАТ, г. Иваново)",3,0,0]
[188,"Чистякова Светлана (г. Саров)",3,1,0]
[189,"Шайхов Мазер (г. Москва)",7,4,0]
[190,"Шаломина Анна (г. Ярославль)",3,1,0]
[191,"Широбоква Варвара (г. Москва)",3,1,0]
[192,"Шишина Анастасия (г.Нижний Новгород)",3,0,0]
[193,"Шульгин Даниил (СК \"Подмосковье\", г. Люберцы)",2,0,{"$f":"IF(C194>9,(D194/C194)+0.0001%,0)","v":0}]
[194,"Юрецкая София (г. Северодвинск)",6,2,0]
[195,"Юшина София (ТК \"Жемчужина\", г. Москва)",6,4,0]
[196,"Якушкин Максим (Академия Александра Островского в Химках)",4,3,0]
[197,"Янов Глеб (Академия Александра Островского в Химках)",2,0,0]
[198,"Яценко Тамара (ТК \"Жемчужина\", г. Москва)",9,6,0]
[199,null,null,null,0]
[200,null,null,null,0]
[201,null,null,null,0]
["*","В рейтинге учитываются результаты игроков, сыгравших не менее 10 матчей"]